[Event "15th Governor Cup 2019"]
[Site "Khanty-Mansiysk"]
[Date "2019.11.24"]
[Round "8.11"]
[White "Guseva, Marina"]
[Black "Iljiushenok, Ilia"]
[Result "0-1"]
[ECO "A63"]
[WhiteElo "2366"]
[BlackElo "2532"]
[Annotator "ChessBase"]
[PlyCount "104"]
[EventDate "2019.11.19"]
[EventType "swiss"]
[EventCountry "RUS"]
[SourceTitle "playchess.com"]
[Source "ChessBase"]
[SourceQuality "1"]
[TimeControl "5400+30"]

1. d4 {[%emt 0:00:00]} Nf6 {[%emt 0:00:00]} 2. c4 {[%emt 0:00:00]} g6 {[%emt 0:00:00]} 3. Nf3 {[%emt 0:00:00]} Bg7 {[%emt 0:00:00]} 4. g3 {[%emt 0:00:00]} c5 {[%emt 0:00:00]} 5. d5 {[%emt 0:03:52]} O-O {[%emt 0:00:00]} 6. Bg2 {[%emt 0:00:09]} e6 {[%emt 0:00:01]} 7. Nc3 {[%emt 0:00:03]} exd5 {[%emt 0:00:07]} 8. cxd5 {[%emt 0:00:04]} d6 {[%emt 0:00:04]} 9. O-O {[%emt 0:00:04]} Nbd7 {[%emt 0:00:18]} 10. Bf4 {[%emt 0:07:08]} Qe7 {[%emt 0:00:18]} 11. e4 {[%emt 0:04:24]} Ng4 {[%emt 0:01:47]} 12. Bg5 {[%emt 0:02:20]} f6 {[%emt 0:01:17]} 13. Bd2 {[%emt 0:03:34]} Nde5 {[%emt 0:06:56]} 14. Nxe5 {[%emt 0:00:46]} Nxe5 {[%emt 0:03:30]} 15. Qe2 {[%emt 0:00:04]} f5 {[%emt 0:03:03]} 16. f4 {[%emt 0:05:04]} Nf7 {[%emt 0:15:54]} 17. Rfe1 {[%emt 0:05:32]} Re8 {[%emt 0:10:44]} 18. a4 {[%emt 0:04:32]} Bd7 {[%emt 0:08:22]} 19. Qc4 {[%emt 0:07:19]} fxe4 {[%emt 0:08:53]} 20. Rxe4 {[%emt 0:00:13]} Qf6 {[%emt 0:00:20]} 21. Rae1 {[%emt 0:18:05]} Rxe4 {[%emt 0:07:16]} 22. Rxe4 {[%emt 0:00:04]} Re8 {[%emt 0:09:30]} 23. Rxe8+ {[%emt 0:03:32]} Bxe8 {[%emt 0:00:01]} 24. Be3 {[%emt 0:07:35]} Qe7 {[%emt 0:02:26]} 25. Bf2 {[%emt 0:02:25]} Nh6 {[%emt 0:03:37]} 26. h3 {[%emt 0:01:43]} Nf5 {[%emt 0:01:03]} 27. g4 {[%emt 0:01:07]} Bd4 {[%emt 0:02:30]} 28. Qf1 {[%emt 0:08:40]} Ng3 {[%emt 0:02:34]} 29. Qa1 {[%emt 0:01:26]} Ne2+ {[%emt 0:04:02]} 30. Nxe2 {[%emt 0:00:04]} Qxe2 {[%emt 0:00:03]} 31. Bxd4 {[%emt 0:00:12]} cxd4 {[%emt 0:00:01]} 32. b3 {[%emt 0:04:13]} d3 {[%emt 0:01:47]} 33. Qf1 {[%emt 0:00:54]} Qe3+ {[%emt 0:00:23]} 34. Qf2 {[%emt 0:01:22]} Qc1+ {[%emt 0:00:07]} 35. Kh2 {[%emt 0:00:04]} d2 {[%emt 0:01:58]} 36. Qe2 {[%emt 0:00:04]} Qe1 {[%emt 0:00:09]} 37. Bf3 {[%emt 0:00:04]} Bf7 {[%emt 0:00:14]} 38. Qd3 {[%emt 0:01:02]} Qf2+ {[%emt 0:00:11]} 39. Kh1 {[%emt 0:00:12]} Qg3 {[%emt 0:04:09]} 40. f5 {[%emt 0:00:03]} gxf5 {[%emt 0:01:08]} 41. Qxf5 {[%emt 0:00:05]} Qxh3+ {[%emt 0:00:09]} 42. Kg1 {[%emt 0:00:03]} Qg3+ {[%emt 0:00:05]} 43. Kh1 {[%emt 0:01:37]} d1=Q+ {[%emt 0:02:45]} 44. Bxd1 {[%emt 0:00:04]} Qe1+ {[%emt 0:00:03]} 45. Kh2 {[%emt 0:00:07]} Qxd1 {[%emt 0:00:04]} 46. Qg5+ {[%emt 0:00:15]} Bg6 {[%emt 0:00:12]} 47. Qd8+ {[%emt 0:00:10]} Kf7 {[%emt 0:00:04]} 48. Qd7+ {[%emt 0:00:56]} Kf6 {[%emt 0:00:04]} 49. Qxd6+ {[%emt 0:01:08]} Kg5 {[%emt 0:00:04]} 50. Qe5+ {[%emt 0:00:53]} Kxg4 {[%emt 0:00:05]} 51. d6 {[%emt 0:00:14]} Qd2+ {[%emt 0:01:43]} 52. Kg1 {[%emt 0:00:05]} Bf5 {[%emt 0:00:41]} 0-1

[Event "15th Governor Cup 2019"]
[Site "Khanty-Mansiysk"]
[Date "2019.11.24"]
[Round "8.12"]
[White "Yakimova, Mariya"]
[Black "Nesterov, Arseniy"]
[Result "0-1"]
[ECO "A64"]
[WhiteElo "2276"]
[BlackElo "2489"]
[Annotator "ChessBase"]
[PlyCount "78"]
[EventDate "2019.11.19"]
[EventType "swiss"]
[EventCountry "RUS"]
[SourceTitle "playchess.com"]
[Source "ChessBase"]
[SourceQuality "1"]
[TimeControl "5400+30"]

1. d4 {[%emt 0:00:00]} Nf6 {[%emt 0:00:00]} 2. c4 {[%emt 0:00:00]} e6 {[%emt 0:00:00]} 3. g3 {[%emt 0:00:00]} c5 {[%emt 0:00:00]} 4. d5 {[%emt 0:00:00]} exd5 {[%emt 0:00:00]} 5. cxd5 {[%emt 0:00:00]} d6 {[%emt 0:00:00]} 6. Nc3 {[%emt 0:00:00]} g6 {[%emt 0:00:08]} 7. Bg2 {[%emt 0:00:00]} Bg7 {[%emt 0:00:07]} 8. Nf3 {[%emt 0:00:00]} O-O {[%emt 0:00:08]} 9. O-O {[%emt 0:00:01]} Re8 {[%emt 0:00:28]} 10. Nd2 {[%emt 0:00:05]} a6 {[%emt 0:00:51]} 11. a4 {[%emt 0:00:04]} Nbd7 {[%emt 0:00:55]} 12. Nc4 {[%emt 0:01:21]} Ne5 {[%emt 0:01:18]} 13. Nxe5 {[%emt 0:00:06]} Rxe5 {[%emt 0:00:05]} 14. Re1 {[%emt 0:04:10]} Rb8 {[%emt 0:01:53]} 15. a5 {[%emt 0:00:05]} b5 {[%emt 0:08:00]} 16. axb6 {[%emt 0:00:05]} Rxb6 {[%emt 0:00:07]} 17. Ra2 {[%emt 0:11:41]} Re8 {[%emt 0:06:35]} 18. Bd2 {[%emt 0:08:23]} Bd7 {[%emt 0:21:06]} 19. h3 {[%emt 0:06:42]} Qc8 {[%emt 0:06:14]} 20. Kh2 {[%emt 0:00:15]} h5 {[%emt 0:01:20]} 21. e4 {[%emt 0:06:15]} Qb7 {[%emt 0:10:11]} 22. Qc2 {[%emt 0:01:30]} h4 {[%emt 0:05:55]} 23. g4 {[%emt 0:00:48]} Rb8 {[%emt 0:00:55]} 24. Rb1 {[%emt 0:01:39]} Rb3 {[%emt 0:03:42]} 25. Bf1 {[%emt 0:04:45]} Bxg4 {[%emt 0:01:11]} 26. hxg4 {[%emt 0:02:29]} Nxg4+ {[%emt 0:00:04]} 27. Kg2 {[%emt 0:06:36]} Qe7 {[%emt 0:02:38]} 28. Be2 {[%emt 0:03:13]} h3+ {[%emt 0:03:50]} 29. Kg3 {[%emt 0:01:39]} Nxf2 {[%emt 0:01:36]} 30. Kxf2 {[%emt 0:01:08]} Qh4+ {[%emt 0:00:10]} 31. Kf3 {[%emt 0:05:29]} Qh5+ {[%emt 0:01:23]} 32. Kf2 {[%emt 0:11:33]} Bd4+ {[%emt 0:00:26]} 33. Kg3 {[%emt 0:06:52]} Be5+ {[%emt 0:00:34]} 34. Kf2 {[%emt 0:00:08]} Qh4+ {[%emt 0:00:08]} 35. Kf1 {[%emt 0:02:15]} Bd4 {[%emt 0:00:22]} 36. Be3 {[%emt 0:00:36]} Bxe3 {[%emt 0:00:08]} 37. Bf3 {[%emt 0:00:08]} Qg3 {[%emt 0:00:18]} 38. Bh1 {[%emt 0:00:48]} Qg1+ {[%emt 0:00:20]} 39. Ke2 {[%emt 0:00:08]} Qf2+ {[%emt 0:00:05]} 0-1

[Event "15th Governor Cup 2019"]
[Site "Khanty-Mansiysk"]
[Date "2019.11.24"]
[Round "8.13"]
[White "Lysenko, Margarita"]
[Black "Zakaryan, David"]
[Result "1-0"]
[ECO "E00"]
[WhiteElo "2243"]
[BlackElo "2338"]
[Annotator "NA"]
[PlyCount "131"]
[EventDate "2019.11.19"]
[EventType "swiss"]
[EventCountry "RUS"]
[SourceTitle "playchess.com"]
[Source "ChessBase"]
[SourceQuality "1"]
[TimeControl "5400+30"]

1. d4 {[%emt 0:00:00]} e6 {[%emt 0:01:04]} 2. c4 {[%emt 0:00:00]} Bb4+ {[%emt 0:00:07]} 3. Bd2 {[%emt 0:00:29]} Qe7 {[%emt 0:00:39]} 4. Nf3 {[%emt 0:01:54]} f5 {[%emt 0:01:53]} 5. g3 {[%emt 0:00:45]} b6 {[%emt 0:00:01]} 6. Bg2 {[%emt 0:00:30]} Bb7 {[%emt 0:00:02]} 7. Nc3 {[%emt 0:06:38]} Nf6 {[%emt 0:00:26]} 8. O-O {[%emt 0:00:23]} O-O {[%emt 0:00:51]} 9. a3 {[%emt 0:08:28]} Bxc3 {[%emt 0:00:06]} 10. Bxc3 {[%emt 0:00:05]} Ne4 {[%emt 0:00:32]} 11. Be1 {[%emt 0:02:08]} c5 {[%emt 0:02:20]} 12. Nd2 {[%emt 0:12:48]} d6 {[%emt 0:02:12]} 13. Nxe4 {[%emt 0:00:39]} fxe4 {[%emt 0:00:24]} 14. Bc3 {[%emt 0:09:07]} Nd7 {[%emt 0:01:45]} 15. f3 {[%emt 0:18:05]} Rac8 {[%emt 0:12:03]} 16. dxc5 {[%emt 0:06:37]} bxc5 {[%emt 0:00:52]} 17. fxe4 {[%emt 0:04:34]} Rxf1+ {[%emt 0:00:04]} 18. Qxf1 {[%emt 0:00:06]} e5 {[%emt 0:00:09]} 19. Qf3 {[%emt 0:02:59]} Nb6 {[%emt 0:05:46]} 20. b3 {[%emt 0:00:39]} Rf8 {[%emt 0:05:20]} 21. Qd3 {[%emt 0:02:25]} Qe6 {[%emt 0:00:38]} 22. Bd2 {[%emt 0:03:35]} h6 {[%emt 0:00:04]} 23. Rf1 {[%emt 0:00:34]} Rxf1+ {[%emt 0:00:12]} 24. Kxf1 {[%emt 0:00:58]} Bc6 {[%emt 0:00:40]} 25. Kg1 {[%emt 0:01:36]} Nd7 {[%emt 0:01:38]} 26. Ba5 {[%emt 0:00:55]} Kf7 {[%emt 0:01:52]} 27. Bc7 {[%emt 0:01:48]} Ke7 {[%emt 0:00:24]} 28. b4 {[%emt 0:02:45]} Bb7 {[%emt 0:01:27]} 29. Bf3 {[%emt 0:04:04]} Ba6 {[%emt 0:05:02]} 30. b5 {[%emt 0:00:32]} Bb7 {[%emt 0:00:01]} 31. a4 {[%emt 0:02:09]} Nb6 {[%emt 0:00:30]} 32. Bxb6 {[%emt 0:00:19]} axb6 {[%emt 0:00:03]} 33. Qc3 {[%emt 0:01:03]} Bc8 {[%emt 0:01:59]} 34. a5 {[%emt 0:01:12]} bxa5 {[%emt 0:00:03]} 35. Qxa5 {[%emt 0:00:05]} Qd7 {[%emt 0:00:41]} 36. Qb6 {[%emt 0:03:56]} g6 {[%emt 0:00:55]} 37. Qb8 {[%emt 0:00:54]} h5 {[%emt 0:02:17]} 38. e3 {[%emt 0:01:19]} Kf6 {[%emt 0:02:24]} 39. Qb6 {[%emt 0:01:35]} Kg5 {[%emt 0:00:30]} 40. Qa5 {[%emt 0:00:32]} Bb7 {[%emt 0:01:00]} 41. Qa7 {[%emt 0:00:46]} Qc7 {[%emt 0:00:13]} 42. Qa2 {[%emt 0:00:24]} Kf6 {[%emt 0:00:55]} 43. Qa7 {[%emt 0:00:35]} Kg5 {[%emt 0:00:06]} 44. Qa2 {[%emt 0:00:22]} Kh6 {[%emt 0:00:14]} 45. h4 {[%emt 0:00:30]} Qf7 {[%emt 0:00:20]} 46. Bg2 {[%emt 0:00:31]} Qc7 {[%emt 0:01:37]} 47. Qa7 {[%emt 0:00:24]} Kg7 {[%emt 0:00:22]} 48. Bh3 {[%emt 0:00:37]} Kf6 {[%emt 0:01:09]} 49. b6 {[%emt 0:00:35]} Qe7 {[%emt 0:01:05]} 50. Qb8 {[%emt 0:00:28]} Kg7 {[%emt 0:00:02]} 51. Qc7 {[%emt 0:00:21]} Kf6 {[%emt 0:00:04]} 52. Bd7 {[%emt 0:00:18]} Bxe4 {[%emt 0:00:38]} 53. b7 {[%emt 0:00:09]} Bxb7 {[%emt 0:00:19]} 54. Qxb7 {[%emt 0:00:07]} e4 {[%emt 0:00:26]} 55. Qc8 {[%emt 0:01:17]} Kg7 {[%emt 0:00:33]} 56. Qe8 {[%emt 0:00:22]} Qf6 {[%emt 0:00:09]} 57. Qxe4 {[%emt 0:00:21]} Qa1+ {[%emt 0:00:01]} 58. Kh2 {[%emt 0:00:18]} Qa2+ {[%emt 0:00:18]} 59. Kh3 {[%emt 0:00:25]} Qa1 {[%emt 0:00:01]} 60. Bc6 {[%emt 0:00:51]} Qf1+ {[%emt 0:00:07]} 61. Qg2 {[%emt 0:00:17]} Qxc4 {[%emt 0:00:10]} 62. Bd5 {[%emt 0:00:35]} Qc3 {[%emt 0:00:50]} 63. Qf3 {[%emt 0:00:25]} Qe5 {[%emt 0:00:20]} 64. Qf7+ {[%emt 0:00:11]} Kh6 {[%emt 0:00:04]} 65. Qf8+ {[%emt 0:01:06]} Kh7 {[%emt 0:00:08]} 66. Bg8+ {[%emt 0:00:06]} 1-0

[Event "15th Governor Cup 2019"]
[Site "Khanty-Mansiysk"]
[Date "2019.11.24"]
[Round "8.14"]
[White "Mochalin, Faddey"]
[Black "Remizov, Yaroslav"]
[Result "1/2-1/2"]
[ECO "D35"]
[WhiteElo "2188"]
[BlackElo "2394"]
[Annotator "NA RC"]
[PlyCount "146"]
[EventDate "2019.11.19"]
[EventType "swiss"]
[EventCountry "RUS"]
[SourceTitle "playchess.com"]
[Source "ChessBase"]
[SourceQuality "1"]
[TimeControl "5400+30"]

1. d4 {[%emt 0:00:00]} d5 {[%emt 0:00:00]} 2. c4 {[%emt 0:00:03]} e6 {[%emt 0:00:00]} 3. Nc3 {[%emt 0:00:12]} Nf6 {[%emt 0:00:00]} 4. cxd5 {[%emt 0:00:32]} exd5 {[%emt 0:00:00]} 5. Bg5 {[%emt 0:00:16]} c6 {[%emt 0:00:00]} 6. e3 {[%emt 0:01:10]} Be7 {[%emt 0:00:09]} 7. Qc2 {[%emt 0:00:58]} Nbd7 {[%emt 0:00:20]} 8. Bd3 {[%emt 0:00:22]} Nh5 {[%emt 0:00:16]} 9. Bxe7 {[%emt 0:03:58]} Qxe7 {[%emt 0:01:04]} 10. O-O-O {[%emt 0:00:25]} Nb6 {[%emt 0:06:16]} 11. h3 {[%emt 0:02:33]} g6 {[%emt 0:00:48]} 12. Nf3 {[%emt 0:01:18]} Be6 {[%emt 0:03:46]} 13. Kb1 {[%emt 0:01:25]} O-O-O {[%emt 0:02:49]} 14. Na4 {[%emt 0:01:44]} Nxa4 {[%emt 0:07:42]} 15. Qxa4 {[%emt 0:00:08]} Kb8 {[%emt 0:00:05]} 16. Rc1 {[%emt 0:04:41]} Ng7 {[%emt 0:03:00]} 17. Rc3 {[%emt 0:06:43]} Bf5 {[%emt 0:02:41]} 18. Rhc1 {[%emt 0:11:14]} f6 {[%emt 0:06:38]} 19. Bxf5 {[%emt 0:01:46]} Nxf5 {[%emt 0:08:37]} 20. Ra3 {[%emt 0:08:25]} a6 {[%emt 0:20:16]} 21. Rb3 {[%emt 0:07:23]} Ka7 {[%emt 0:01:51]} 22. Qa5 {[%emt 0:01:36]} Rc8 {[%emt 0:06:58]} 23. a4 {[%emt 0:04:11]} Nd6 {[%emt 0:05:44]} 24. Qc5+ {[%emt 0:11:08]} Ka8 {[%emt 0:00:27]} 25. Nd2 {[%emt 0:02:08]} Rhe8 {[%emt 0:01:16]} 26. Ra3 {[%emt 0:03:18]} Qd7 {[%emt 0:06:49]} 27. Ka1 {[%emt 0:01:42]} Kb8 {[%emt 0:03:42]} 28. Ra2 {[%emt 0:02:02]} Ne4 {[%emt 0:02:41]} 29. Nxe4 {[%emt 0:00:56]} Rxe4 {[%emt 0:00:04]} 30. b4 {[%emt 0:00:36]} f5 {[%emt 0:02:22]} 31. Rac2 {[%emt 0:07:31]} Rce8 {[%emt 0:04:10]} 32. g3 {[%emt 0:12:37]} g5 {[%emt 0:03:50]} 33. b5 {[%emt 0:01:35]} cxb5 {[%emt 0:00:42]} 34. axb5 {[%emt 0:00:18]} R4e6 {[%emt 0:01:05]} 35. Ra2 {[%emt 0:01:59]} Qxb5 {[%emt 0:00:33]} 36. Qxb5 {[%emt 0:00:31]} axb5 {[%emt 0:00:03]} 37. Rc5 {[%emt 0:00:35]} f4 {[%emt 0:00:14]} 38. gxf4 {[%emt 0:00:27]} gxf4 {[%emt 0:00:03]} 39. Rxd5 {[%emt 0:00:32]} fxe3 {[%emt 0:00:23]} 40. fxe3 {[%emt 0:00:11]} Rxe3 {[%emt 0:00:34]} 41. Rxb5 {[%emt 0:00:39]} Rxh3 {[%emt 0:00:41]} 42. Rg2 {[%emt 0:00:39]} Re7 {[%emt 0:00:23]} 43. d5 {[%emt 0:00:28]} Rd7 {[%emt 0:00:54]} 44. Ra5 {[%emt 0:00:33]} Kc7 {[%emt 0:00:33]} 45. Rd2 {[%emt 0:00:30]} Kd6 {[%emt 0:00:21]} 46. Rb5 {[%emt 0:00:30]} Ke5 {[%emt 0:00:33]} 47. Kb1 {[%emt 0:00:30]} Rh6 {[%emt 0:01:31]} 48. Re2+ {[%emt 0:00:30]} Kd4 {[%emt 0:00:16]} 49. Rd2+ {[%emt 0:00:31]} Kc4 {[%emt 0:00:35]} 50. Rbb2 {[%emt 0:00:30]} Kc5 {[%emt 0:00:40]} 51. Rdc2+ {[%emt 0:00:30]} Kd4 {[%emt 0:00:31]} 52. Rd2+ {[%emt 0:00:24]} Ke5 {[%emt 0:00:24]} 53. Re2+ {[%emt 0:00:21]} Kf6 {[%emt 0:00:22]} 54. Kc2 {[%emt 0:00:45]} Kg7 {[%emt 0:00:22]} 55. Kc3 {[%emt 0:00:29]} Rh5 {[%emt 0:00:27]} 56. Kc4 {[%emt 0:00:31]} Rg5 {[%emt 0:00:30]} 57. d6 {[%emt 0:00:30]} b5+ {[%emt 0:00:37]} 58. Rxb5 {[%emt 0:00:30]} Rxb5 {[%emt 0:00:04]} 59. Kxb5 {[%emt 0:00:17]} Rxd6 {[%emt 0:00:02]} 60. Kc5 {[%emt 0:00:13]} Rd8 {[%emt 0:00:14]} 61. Rg2+ {[%emt 0:00:31]} Kf6 {[%emt 0:00:42]} 62. Rh2 {[%emt 0:00:34]} Kg6 {[%emt 0:00:23]} 63. Rg2+ {[%emt 0:00:14]} Kf5 {[%emt 0:00:03]} 64. Rh2 {[%emt 0:00:42]} Rd7 {[%emt 0:00:36]} 65. Kc6 {[%emt 0:00:44]} Ra7 {[%emt 0:01:15]} 66. Kd5 {[%emt 0:00:24]} Kf4 {[%emt 0:00:14]} 67. Rh6 {[%emt 0:00:50]} Re7 {[%emt 0:01:31]} 68. Kd6 {[%emt 0:00:31]} Rb7 {[%emt 0:00:07]} 69. Kd5 {[%emt 0:00:20]} Ra7 {[%emt 0:00:03]} 70. Rh4+ {[%emt 0:00:36]} Kf5 {[%emt 0:00:42]} 71. Rh1 {[%emt 0:00:33]} Kf4 {[%emt 0:01:20]} 72. Rh4+ {[%emt 0:00:28]} Kf5 {[%emt 0:00:32]} 73. Rh1 {[%emt 0:00:14]} Kf4 {[%emt 0:00:16] Ke4+ Ke5+} 1/2-1/2

[Event "15th Governor Cup 2019"]
[Site "Khanty-Mansiysk"]
[Date "2019.11.24"]
[Round "8.16"]
[White "Obgolts, Erik"]
[Black "Skatchkov, Valery"]
[Result "1/2-1/2"]
[ECO "A05"]
[WhiteElo "2371"]
[BlackElo "2309"]
[Annotator "NA"]
[PlyCount "81"]
[EventDate "2019.11.19"]
[EventType "swiss"]
[EventCountry "RUS"]
[SourceTitle "playchess.com"]
[Source "ChessBase"]
[SourceQuality "1"]
[TimeControl "5400+30"]

1. Nf3 {[%emt 0:00:00]} Nf6 {[%emt 0:00:00]} 2. g3 {[%emt 0:00:05]} e6 {[%emt 0:00:15]} 3. Bg2 {[%emt 0:00:05]} d5 {[%emt 0:00:07]} 4. O-O {[%emt 0:00:22]} Be7 {[%emt 0:00:03]} 5. d3 {[%emt 0:01:10]} c5 {[%emt 0:00:24]} 6. Nbd2 {[%emt 0:01:07]} Nc6 {[%emt 0:00:06]} 7. c4 {[%emt 0:01:13]} O-O {[%emt 0:01:18]} 8. b3 {[%emt 0:07:03]} b6 {[%emt 0:00:30]} 9. Bb2 {[%emt 0:00:44]} Bb7 {[%emt 0:00:05]} 10. a3 {[%emt 0:06:38]} Qc7 {[%emt 0:02:13]} 11. Qc2 {[%emt 0:01:41]} Rac8 {[%emt 0:01:41]} 12. e3 {[%emt 0:03:36]} Rfd8 {[%emt 0:01:22]} 13. Rfd1 {[%emt 0:04:32]} a6 {[%emt 0:04:22]} 14. Rac1 {[%emt 0:01:19]} Qb8 {[%emt 0:00:49]} 15. Qb1 {[%emt 0:07:37]} h6 {[%emt 0:06:06]} 16. cxd5 {[%emt 0:08:52]} Nxd5 {[%emt 0:02:45]} 17. Ne4 {[%emt 0:02:45]} Bf8 {[%emt 0:14:33]} 18. g4 {[%emt 0:07:46]} f5 {[%emt 0:01:15]} 19. gxf5 {[%emt 0:00:44]} exf5 {[%emt 0:00:06]} 20. Nc3 {[%emt 0:01:36]} Nxc3 {[%emt 0:09:24]} 21. Bxc3 {[%emt 0:00:33]} Ne7 {[%emt 0:09:20]} 22. e4 {[%emt 0:08:19]} fxe4 {[%emt 0:00:58]} 23. dxe4 {[%emt 0:00:07]} Qf4 {[%emt 0:00:43]} 24. Ne5 {[%emt 0:03:07]} Rxd1+ {[%emt 0:08:28]} 25. Rxd1 {[%emt 0:00:05]} Nf5 {[%emt 0:00:58]} 26. Qd3 {[%emt 0:07:30]} Nd4 {[%emt 0:10:26]} 27. Ng6 {[%emt 0:03:20]} Qg4 {[%emt 0:00:08]} 28. Bxd4 {[%emt 0:01:56]} cxd4 {[%emt 0:02:11]} 29. Nxf8 {[%emt 0:00:37]} Bxe4 {[%emt 0:00:23]} 30. f3 {[%emt 0:02:19]} Qxg2+ {[%emt 0:00:06]} 31. Kxg2 {[%emt 0:00:03]} Bxd3 {[%emt 0:00:04]} 32. Rxd3 {[%emt 0:01:45]} Rc3 {[%emt 0:01:38]} 33. Rxd4 {[%emt 0:00:04]} Kxf8 {[%emt 0:00:04]} 34. Rb4 {[%emt 0:00:53]} b5 {[%emt 0:00:21]} 35. a4 {[%emt 0:00:05]} bxa4 {[%emt 0:00:05]} 36. Rxa4 {[%emt 0:00:07]} Rxb3 {[%emt 0:00:03]} 37. Rxa6 {[%emt 0:00:04]} Kf7 {[%emt 0:00:04]} 38. h4 {[%emt 0:00:10]} Rb4 {[%emt 0:00:10]} 39. Kg3 {[%emt 0:00:04]} Rb5 {[%emt 0:00:04]} 40. Rc6 {[%emt 0:00:09]} Rd5 {[%emt 0:00:04]} 41. Ra6 {[%emt 0:00:04]} 1/2-1/2

[Event "15th Governor Cup 2019"]
[Site "Khanty-Mansiysk"]
[Date "2019.11.24"]
[Round "8.17"]
[White "Martynyuk, Elizaveta"]
[Black "Maltsevskaya, Aleksandra"]
[Result "0-1"]
[ECO "B46"]
[WhiteElo "2020"]
[BlackElo "2332"]
[Annotator "NA"]
[PlyCount "62"]
[EventDate "2019.11.19"]
[EventType "swiss"]
[EventCountry "RUS"]
[SourceTitle "playchess.com"]
[Source "ChessBase"]
[SourceQuality "1"]
[TimeControl "5400+30"]

1. e4 {[%emt 0:03:41]} c5 {[%emt 0:00:00]} 2. Nf3 {[%emt 0:00:23]} Nc6 {[%emt 0:00:00]} 3. d4 {[%emt 0:00:11]} cxd4 {[%emt 0:00:00]} 4. Nxd4 {[%emt 0:00:11]} e6 {[%emt 0:00:05]} 5. Nc3 {[%emt 0:00:06]} a6 {[%emt 0:00:05]} 6. Be3 {[%emt 0:00:11]} Nf6 {[%emt 0:00:07]} 7. Bd3 {[%emt 0:00:07]} d5 {[%emt 0:01:26]} 8. exd5 {[%emt 0:14:49]} exd5 {[%emt 0:00:08]} 9. O-O {[%emt 0:02:28]} Be7 {[%emt 0:00:06]} 10. Bf5 {[%emt 0:05:32]} O-O {[%emt 0:03:24]} 11. Bxc8 {[%emt 0:03:08]} Qxc8 {[%emt 0:00:36]} 12. Qf3 {[%emt 0:04:43]} Rd8 {[%emt 0:06:37]} 13. Rad1 {[%emt 0:01:41]} Ne5 {[%emt 0:02:31]} 14. Qf5 {[%emt 0:02:16]} Nc4 {[%emt 0:01:10]} 15. Bc1 {[%emt 0:08:27]} h6 {[%emt 0:03:17]} 16. Rfe1 {[%emt 0:10:02]} Bb4 {[%emt 0:01:21]} 17. Rd3 {[%emt 0:01:09]} Nd6 {[%emt 0:10:36]} 18. Qf3 {[%emt 0:02:02]} Nde4 {[%emt 0:04:20]} 19. Nf5 {[%emt 0:05:29]} Re8 {[%emt 0:02:39]} 20. Red1 {[%emt 0:06:58]} Bxc3 {[%emt 0:07:29]} 21. bxc3 {[%emt 0:00:11]} Re5 {[%emt 0:00:04]} 22. Nd4 {[%emt 0:07:50]} Qe8 {[%emt 0:03:39]} 23. h4 {[%emt 0:01:18]} Qd7 {[%emt 0:07:34]} 24. Bf4 {[%emt 0:03:02]} Re7 {[%emt 0:00:06]} 25. Re3 {[%emt 0:01:18]} Rae8 {[%emt 0:02:46]} 26. Bh2 {[%emt 0:03:19]} g6 {[%emt 0:08:48]} 27. Ne2 {[%emt 0:02:59]} Ng4 {[%emt 0:01:03]} 28. Red3 {[%emt 0:00:24]} Nexf2 {[%emt 0:00:34]} 29. Rxd5 {[%emt 0:00:19]} Qc6 {[%emt 0:01:11]} 30. R1d2 {[%emt 0:01:18]} Qb6 {[%emt 0:00:57]} 31. Bd6 {[%emt 0:01:49]} Rxe2 {[%emt 0:00:26]} 0-1

[Event "15th Governor Cup 2019"]
[Site "Khanty-Mansiysk"]
[Date "2019.11.24"]
[Round "8.18"]
[White "Chinguun, Sumiya"]
[Black "Safin, Robert"]
[Result "1/2-1/2"]
[ECO "B40"]
[WhiteElo "2307"]
[BlackElo "2182"]
[Annotator "NA"]
[PlyCount "110"]
[EventDate "2019.11.19"]
[EventType "swiss"]
[EventCountry "RUS"]
[SourceTitle "playchess.com"]
[Source "ChessBase"]
[SourceQuality "1"]
[TimeControl "5400+30"]

1. e4 {[%emt 0:00:00]} c5 {[%emt 0:00:00]} 2. Nf3 {[%emt 0:00:00]} e6 {[%emt 0:00:00]} 3. d4 {[%emt 0:00:00]} cxd4 {[%emt 0:00:00]} 4. Nxd4 {[%emt 0:00:03]} Nf6 {[%emt 0:00:00]} 5. Nc3 {[%emt 0:00:24]} Nc6 {[%emt 0:00:00]} 6. Be3 {[%emt 0:03:57]} Bb4 {[%emt 0:00:08]} 7. Bd3 {[%emt 0:18:07]} Qa5 {[%emt 0:27:00]} 8. O-O {[%emt 0:06:45]} Bxc3 {[%emt 0:06:47]} 9. bxc3 {[%emt 0:00:11]} a6 {[%emt 0:01:48]} 10. c4 {[%emt 0:01:22]} Nxd4 {[%emt 0:02:16]} 11. Bxd4 {[%emt 0:00:12]} e5 {[%emt 0:00:29]} 12. Be3 {[%emt 0:02:03]} d6 {[%emt 0:02:34]} 13. f3 {[%emt 0:10:47]} O-O {[%emt 0:00:28]} 14. Be2 {[%emt 0:00:21]} Qc7 {[%emt 0:01:35]} 15. Qd3 {[%emt 0:03:41]} Be6 {[%emt 0:00:23]} 16. Rfd1 {[%emt 0:05:59]} Rfc8 {[%emt 0:25:35]} 17. Qxd6 {[%emt 0:05:53]} Qxd6 {[%emt 0:00:07]} 18. Rxd6 {[%emt 0:00:15]} Bxc4 {[%emt 0:01:05]} 19. Bd3 {[%emt 0:01:27]} Bxd3 {[%emt 0:07:28]} 20. cxd3 {[%emt 0:00:06]} Rd8 {[%emt 0:01:21]} 21. Rxd8+ {[%emt 0:00:27]} Rxd8 {[%emt 0:00:02]} 22. Rd1 {[%emt 0:00:31]} h5 {[%emt 0:02:59]} 23. d4 {[%emt 0:01:51]} exd4 {[%emt 0:00:08]} 24. Rxd4 {[%emt 0:00:28]} Rxd4 {[%emt 0:02:41]} 25. Bxd4 {[%emt 0:00:14]} Nd7 {[%emt 0:00:36]} 26. Kf2 {[%emt 0:00:09]} f6 {[%emt 0:00:44]} 27. Ke3 {[%emt 0:00:54]} Kf7 {[%emt 0:00:06]} 28. Kd3 {[%emt 0:00:40]} Ke6 {[%emt 0:00:08]} 29. Kc4 {[%emt 0:00:25]} Kd6 {[%emt 0:00:23]} 30. f4 {[%emt 0:00:43]} g6 {[%emt 0:07:37]} 31. Bxf6 {[%emt 0:03:26]} Nxf6 {[%emt 0:04:07]} 32. e5+ {[%emt 0:00:11]} Ke6 {[%emt 0:00:03]} 33. exf6 {[%emt 0:00:05]} Kxf6 {[%emt 0:00:03]} 34. Kc5 {[%emt 0:00:05]} Kf5 {[%emt 0:00:03]} 35. Kb6 {[%emt 0:00:04]} Kxf4 {[%emt 0:00:05]} 36. Kxb7 {[%emt 0:00:04]} a5 {[%emt 0:00:36]} 37. a4 {[%emt 0:00:03]} g5 {[%emt 0:00:20]} 38. Kb6 {[%emt 0:00:15]} g4 {[%emt 0:00:14]} 39. Kxa5 {[%emt 0:05:40]} h4 {[%emt 0:01:50]} 40. Kb4 {[%emt 0:01:07]} g3 {[%emt 0:00:06]} 41. h3 {[%emt 0:00:22]} Ke3 {[%emt 0:00:01]} 42. a5 {[%emt 0:00:04]} Kf2 {[%emt 0:00:03]} 43. a6 {[%emt 0:00:08]} Kxg2 {[%emt 0:00:02]} 44. a7 {[%emt 0:00:10]} Kh2 {[%emt 0:00:37]} 45. a8=Q {[%emt 0:00:25]} g2 {[%emt 0:00:05]} 46. Qa2 {[%emt 0:00:46]} Kh1 {[%emt 0:00:48]} 47. Qd5 {[%emt 0:00:52]} Kh2 {[%emt 0:00:06]} 48. Qe5+ {[%emt 0:00:07]} Kxh3 {[%emt 0:07:56]} 49. Qe3+ {[%emt 0:00:31]} Kh2 {[%emt 0:00:06]} 50. Qf4+ {[%emt 0:00:08]} Kh3 {[%emt 0:00:05]} 51. Qe3+ {[%emt 0:00:33]} Kh2 {[%emt 0:00:05]} 52. Qf2 {[%emt 0:00:20]} h3 {[%emt 0:00:04]} 53. Qf4+ {[%emt 0:00:05]} Kh1 {[%emt 0:00:02]} 54. Qf3 {[%emt 0:00:09]} Kh2 {[%emt 0:00:02]} 55. Qf4+ {[%emt 0:00:34]} Kh1 {[%emt 0:00:05]} 1/2-1/2